[Event "*** Titled Tuesday Blitz"]
[Site "Chess.com"]
[Date "2020.05.05"]
[Round "1"]
[White "BIG_Pirate"]
[Black "Taron_Shagbazyan"]
[Result "0-1"]
[WhiteElo "2311"]
[BlackElo "2636"]
[TimeControl "180+1"]
[EndTime "10:07:09 PDT"]
[Termination "Taron_Shagbazyan won on time"]

1. Nf3 {[%clk 0:03:00.1]} 1... Nf6 {[%clk 0:02:57.6]} 2. c4 {[%clk 0:02:59.4]}
2... e6 {[%clk 0:02:55.6]} 3. g3 {[%clk 0:02:57.9]} 3... d5 {[%clk 0:02:56.5]}
4. Bg2 {[%clk 0:02:57.8]} 4... Be7 {[%clk 0:02:56.7]} 5. O-O {[%clk 0:02:57.7]}
5... O-O {[%clk 0:02:57.3]} 6. d4 {[%clk 0:02:58.1]} 6... c6 {[%clk 0:02:53.4]}
7. Nbd2 {[%clk 0:02:56.8]} 7... b6 {[%clk 0:02:51.7]} 8. Qc2 {[%clk 0:02:55.8]}
8... Bb7 {[%clk 0:02:51.9]} 9. e4 {[%clk 0:02:55.7]} 9... Na6 {[%clk 0:02:47]}
10. a3 {[%clk 0:02:21.9]} 10... Rc8 {[%clk 0:02:44.9]} 11. b3 {[%clk 0:02:15.5]}
11... c5 {[%clk 0:02:43.1]} 12. exd5 {[%clk 0:02:15.2]} 12... exd5 {[%clk
0:02:14.2]} 13. Bb2 {[%clk 0:02:11.3]} 13... dxc4 {[%clk 0:02:13.6]} 14. Nxc4
{[%clk 0:01:54]} 14... cxd4 {[%clk 0:02:08.4]} 15. Qf5 {[%clk 0:01:29.9]} 15...
Be4 {[%clk 0:01:43]} 16. Qh3 {[%clk 0:01:25.1]} 16... d3 {[%clk 0:01:38.4]} 17.
Rfe1 {[%clk 0:01:17.4]} 17... Nc5 {[%clk 0:01:32]} 18. Rad1 {[%clk 0:01:15.8]}
18... Bg6 {[%clk 0:01:21]} 19. Nce5 {[%clk 0:01:11.7]} 19... Be4 {[%clk
0:01:04.4]} 20. b4 {[%clk 0:01:03.8]} 20... Na4 {[%clk 0:01:02.6]} 21. Ba1
{[%clk 0:00:45.3]} 21... Qd5 {[%clk 0:00:50.3]} 22. Nxd3 {[%clk 0:00:36.5]}
22... Bxf3 {[%clk 0:00:45.1]} 23. Rxe7 {[%clk 0:00:27.2]} 23... Bxg2 {[%clk
0:00:32.5]} 24. Qxg2 {[%clk 0:00:28.1]} 24... Qb3 {[%clk 0:00:32]} 25. Ree1
{[%clk 0:00:25.4]} 25... Nd5 {[%clk 0:00:32]} 26. Bd4 {[%clk 0:00:15.2]} 26...
Ndc3 {[%clk 0:00:31.1]} 27. Rd2 {[%clk 0:00:13]} 27... Nb1 {[%clk 0:00:28.8]}
28. Rdd1 {[%clk 0:00:10.5]} 28... Nxa3 {[%clk 0:00:29.1]} 29. Qh3 {[%clk
0:00:08.4]} 29... Nc2 {[%clk 0:00:28.3]} 30. Bxg7 {[%clk 0:00:06]} 30... Kxg7
{[%clk 0:00:22.1]} 31. Qg4+ {[%clk 0:00:04.7]} 31... Kh8 {[%clk 0:00:21.8]} 32.
Re5 {[%clk 0:00:01.2]} 32... f6 {[%clk 0:00:18.6]} 33. Qh4 {[%clk 0:00:01.7]}
33... fxe5 {[%clk 0:00:18.3]} 0-1

[Event "*** Titled Tuesday Blitz"]
[Site "Chess.com"]
[Date "2020.05.05"]
[Round "1"]
[White "vlad_Sid"]
[Black "ketster"]
[Result "1-0"]
[WhiteElo "2601"]
[BlackElo "2273"]
[TimeControl "180+1"]
[EndTime "10:07:09 PDT"]
[Termination "vlad_Sid won on time"]

1. c4 {[%clk 0:03:00.9]} 1... Nf6 {[%clk 0:02:54.9]} 2. g3 {[%clk 0:02:58.4]}
2... e6 {[%clk 0:02:52.5]} 3. Bg2 {[%clk 0:02:58.7]} 3... d5 {[%clk 0:02:52.3]}
4. Nf3 {[%clk 0:02:59.6]} 4... d4 {[%clk 0:02:50.2]} 5. O-O {[%clk 0:02:59.7]}
5... c5 {[%clk 0:02:50.3]} 6. b4 {[%clk 0:02:58.7]} 6... cxb4 {[%clk 0:02:49.2]}
7. a3 {[%clk 0:02:57.4]} 7... a5 {[%clk 0:02:48.9]} 8. e3 {[%clk 0:02:56.5]}
8... Nc6 {[%clk 0:02:47.7]} 9. Bb2 {[%clk 0:02:49.9]} 9... dxe3 {[%clk
0:02:47.5]} 10. fxe3 {[%clk 0:02:50.8]} 10... Be7 {[%clk 0:02:47.5]} 11. d4
{[%clk 0:02:45]} 11... Ra6 {[%clk 0:02:40.3]} 12. Nbd2 {[%clk 0:02:34.2]} 12...
O-O {[%clk 0:02:36.6]} 13. e4 {[%clk 0:02:31.2]} 13... e5 {[%clk 0:02:23.9]} 14.
d5 {[%clk 0:02:25.8]} 14... bxa3 {[%clk 0:01:58.8]} 15. Bxa3 {[%clk 0:02:16.3]}
15... Bxa3 {[%clk 0:01:47.8]} 16. Rxa3 {[%clk 0:02:17.2]} 16... Qd6 {[%clk
0:01:33.3]} 17. Qc1 {[%clk 0:02:10.5]} 17... Nd4 {[%clk 0:01:19.9]} 18. Nxd4
{[%clk 0:02:06.9]} 18... exd4 {[%clk 0:01:20.3]} 19. c5 {[%clk 0:02:07.8]} 19...
Qe5 {[%clk 0:01:15.8]} 20. Nc4 {[%clk 0:02:05.9]} 20... Qe7 {[%clk 0:01:10.2]}
21. d6 {[%clk 0:01:50.5]} 21... Qe6 {[%clk 0:00:58]} 22. Rxa5 {[%clk 0:01:34.2]}
22... Rxa5 {[%clk 0:00:52]} 23. Nxa5 {[%clk 0:01:35.1]} 23... Nxe4 {[%clk
0:00:49.6]} 24. Re1 {[%clk 0:01:34.3]} 24... f5 {[%clk 0:00:47.4]} 25. Qc2
{[%clk 0:01:21.5]} 25... Re8 {[%clk 0:00:28.8]} 26. Nb3 {[%clk 0:01:17.9]} 26...
Qd5 {[%clk 0:00:20.2]} 27. Rd1 {[%clk 0:01:16.8]} 27... Be6 {[%clk 0:00:12.3]}
28. Nxd4 {[%clk 0:01:15.4]} 28... Qxc5 {[%clk 0:00:09.5]} 29. Bxe4 {[%clk
0:01:14.3]} 29... Qxd6 {[%clk 0:00:08.7]} 30. Nxe6 {[%clk 0:01:11.2]} 30... Qb6+
{[%clk 0:00:06.1]} 31. Qc5 {[%clk 0:00:55.8]} 31... Qxc5+ {[%clk 0:00:05.7]} 32.
Nxc5 {[%clk 0:00:56.7]} 32... fxe4 {[%clk 0:00:05.9]} 33. Nxb7 {[%clk
0:00:57.6]} 33... e3 {[%clk 0:00:03.3]} 34. Rd8 {[%clk 0:00:56]} 34... Rxd8
{[%clk 0:00:02.2]} 35. Nxd8 {[%clk 0:00:56.9]} 35... g6 {[%clk 0:00:02.6]} 36.
Kf1 {[%clk 0:00:57]} 36... Kg7 {[%clk 0:00:03]} 37. Ke2 {[%clk 0:00:57.7]} 37...
h5 {[%clk 0:00:03.6]} 38. Kxe3 {[%clk 0:00:58.3]} 38... g5 {[%clk 0:00:04.2]}
39. Ne6+ {[%clk 0:00:57.2]} 39... Kf6 {[%clk 0:00:04.6]} 40. Nd4 {[%clk
0:00:57.4]} 40... h4 {[%clk 0:00:04.2]} 41. g4 {[%clk 0:00:57]} 41... Kg6 {[%clk
0:00:04]} 42. Ke4 {[%clk 0:00:56.7]} 42... Kf6 {[%clk 0:00:04.3]} 43. Nf3 {[%clk
0:00:57.6]} 43... Kg6 {[%clk 0:00:04.4]} 44. Ke5 {[%clk 0:00:57.8]} 44... h3
{[%clk 0:00:04.7]} 45. Ke6 {[%clk 0:00:58]} 45... Kh6 {[%clk 0:00:03.9]} 46. Kf6
{[%clk 0:00:57.4]} 1-0

[Event "*** Titled Tuesday Blitz"]
[Site "Chess.com"]
[Date "2020.05.05"]
[Round "1"]
[White "KarstenHansch"]
[Black "neurisdr"]
[Result "0-1"]
[WhiteElo "2413"]
[BlackElo "2794"]
[TimeControl "180+1"]
[EndTime "10:07:10 PDT"]
[Termination "neurisdr won by resignation"]

1. e4 {[%clk 0:02:51.4]} 1... c5 {[%clk 0:02:59]} 2. Nf3 {[%clk 0:02:51]} 2...
d6 {[%clk 0:02:58.1]} 3. Bb5+ {[%clk 0:02:51.1]} 3... Bd7 {[%clk 0:02:56]} 4.
Bxd7+ {[%clk 0:02:50.8]} 4... Nxd7 {[%clk 0:02:56.9]} 5. O-O {[%clk 0:02:49.3]}
5... Ngf6 {[%clk 0:02:55.1]} 6. Qe2 {[%clk 0:02:48.9]} 6... e6 {[%clk
0:02:54.5]} 7. c4 {[%clk 0:02:47.4]} 7... Be7 {[%clk 0:02:53.7]} 8. Nc3 {[%clk
0:02:47.3]} 8... O-O {[%clk 0:02:52.9]} 9. d4 {[%clk 0:02:47.4]} 9... cxd4
{[%clk 0:02:52.5]} 10. Nxd4 {[%clk 0:02:48.3]} 10... a6 {[%clk 0:02:52.8]} 11.
b3 {[%clk 0:02:47.3]} 11... Rc8 {[%clk 0:02:53]} 12. Bb2 {[%clk 0:02:46.8]}
12... Qa5 {[%clk 0:02:53.4]} 13. Rad1 {[%clk 0:02:08.1]} 13... Rfe8 {[%clk
0:02:50.6]} 14. f4 {[%clk 0:02:02.8]} 14... Bf8 {[%clk 0:02:49.9]} 15. f5 {[%clk
0:01:44.4]} 15... e5 {[%clk 0:02:38.3]} 16. Nc2 {[%clk 0:01:30.4]} 16... b5
{[%clk 0:02:37.4]} 17. Ne3 {[%clk 0:01:29.5]} 17... b4 {[%clk 0:02:08.8]} 18.
Ncd5 {[%clk 0:01:28.1]} 18... Qxa2 {[%clk 0:02:03.9]} 19. Nxf6+ {[%clk
0:01:09.7]} 19... Nxf6 {[%clk 0:02:02.7]} 20. Qc2 {[%clk 0:01:09.7]} 20... Qa5
{[%clk 0:01:57.9]} 21. Nd5 {[%clk 0:01:08.9]} 21... Nxd5 {[%clk 0:01:49]} 22.
Rxd5 {[%clk 0:01:09.8]} 22... Qc7 {[%clk 0:01:48.5]} 23. Ra1 {[%clk 0:01:05.5]}
23... Qb7 {[%clk 0:01:47.7]} 24. Bc1 {[%clk 0:00:49.2]} 24... Rc5 {[%clk
0:01:45.5]} 25. Qd3 {[%clk 0:00:44.6]} 25... Rxd5 {[%clk 0:01:44.5]} 26. Qxd5
{[%clk 0:00:45.5]} 26... Qb6+ {[%clk 0:01:40.9]} 27. Kf1 {[%clk 0:00:44.1]}
27... Rc8 {[%clk 0:01:39]} 28. Qd3 {[%clk 0:00:35.2]} 28... a5 {[%clk 0:01:38]}
29. Be3 {[%clk 0:00:34.5]} 29... Qd8 {[%clk 0:01:30.1]} 30. Qd5 {[%clk
0:00:32.5]} 30... Ra8 {[%clk 0:01:29.7]} 31. g3 {[%clk 0:00:30.6]} 31... g6
{[%clk 0:01:28.2]} 32. g4 {[%clk 0:00:26]} 32... a4 {[%clk 0:01:21.8]} 33. Bd2
{[%clk 0:00:16.7]} 33... a3 {[%clk 0:01:16]} 34. Bxb4 {[%clk 0:00:16.7]} 34...
a2 {[%clk 0:01:16]} 35. Bc3 {[%clk 0:00:15.2]} 35... Ra3 {[%clk 0:01:12.8]} 36.
Qd1 {[%clk 0:00:12.1]} 36... Qh4 {[%clk 0:01:10.8]} 37. Kg2 {[%clk 0:00:11.6]}
37... h5 {[%clk 0:01:09.6]} 38. h3 {[%clk 0:00:11.2]} 38... Bh6 {[%clk
0:01:05.5]} 39. Be1 {[%clk 0:00:10.3]} 39... Qg5 {[%clk 0:01:04.9]} 40. Qxd6
{[%clk 0:00:09.2]} 40... Ra8 {[%clk 0:00:57.1]} 41. Qd5 {[%clk 0:00:08.5]} 41...
Rd8 {[%clk 0:00:56.4]} 42. Qa5 {[%clk 0:00:08.4]} 42... hxg4 {[%clk 0:00:55.6]}
43. hxg4 {[%clk 0:00:08.2]} 43... Qxg4+ {[%clk 0:00:55.2]} 44. Kf1 {[%clk
0:00:08.4]} 44... Qf3+ {[%clk 0:00:54.3]} 45. Bf2 {[%clk 0:00:08.7]} 45... Rd2
{[%clk 0:00:53.7]} 46. Qa8+ {[%clk 0:00:06.1]} 46... Kg7 {[%clk 0:00:51.8]} 47.
Qa6 {[%clk 0:00:06.3]} 0-1

[Event "*** Titled Tuesday Blitz"]
[Site "Chess.com"]
[Date "2020.05.05"]
[Round "1"]
[White "Colombiano07"]
[Black "11kevin"]
[Result "0-1"]
[WhiteElo "2155"]
[BlackElo "2523"]
[TimeControl "180+1"]
[EndTime "10:07:10 PDT"]
[Termination "11kevin won by resignation"]

1. d4 {[%clk 0:02:59.4]} 1... Nf6 {[%clk 0:02:59.6]} 2. Nf3 {[%clk 0:02:59.1]}
2... e6 {[%clk 0:02:59.2]} 3. e3 {[%clk 0:02:59]} 3... c5 {[%clk 0:02:58.4]} 4.
Bd3 {[%clk 0:02:59.9]} 4... Be7 {[%clk 0:02:56.4]} 5. O-O {[%clk 0:03:00.4]}
5... O-O {[%clk 0:02:56.3]} 6. b3 {[%clk 0:03:00.9]} 6... b6 {[%clk 0:02:56.1]}
7. Bb2 {[%clk 0:03:01.4]} 7... Bb7 {[%clk 0:02:56.2]} 8. Nbd2 {[%clk 0:03:02.1]}
8... d6 {[%clk 0:02:56.2]} 9. Qe2 {[%clk 0:03:02.2]} 9... Nbd7 {[%clk
0:02:55.9]} 10. c4 {[%clk 0:03:00.6]} 10... a6 {[%clk 0:02:54.5]} 11. Rfd1
{[%clk 0:02:58.8]} 11... Qc7 {[%clk 0:02:53.5]} 12. Rac1 {[%clk 0:02:55.9]}
12... Rac8 {[%clk 0:02:52.9]} 13. Bb1 {[%clk 0:02:51.9]} 13... Rfe8 {[%clk
0:02:51.2]} 14. e4 {[%clk 0:02:51]} 14... cxd4 {[%clk 0:02:50.4]} 15. Nxd4
{[%clk 0:02:49.6]} 15... Qb8 {[%clk 0:02:49.7]} 16. f3 {[%clk 0:02:49]} 16...
Bf8 {[%clk 0:02:47.1]} 17. Nf1 {[%clk 0:02:49.1]} 17... d5 {[%clk 0:02:43.6]}
18. Ng3 {[%clk 0:02:38]} 18... e5 {[%clk 0:02:24.4]} 19. Ndf5 {[%clk 0:02:35.4]}
19... d4 {[%clk 0:02:19.4]} 20. Nf1 {[%clk 0:02:23.5]} 20... g6 {[%clk
0:02:08.7]} 21. N5g3 {[%clk 0:02:23]} 21... Bh6 {[%clk 0:02:08.9]} 22. Rc2
{[%clk 0:02:12.2]} 22... Nc5 {[%clk 0:02:04.8]} 23. Qf2 {[%clk 0:01:56]} 23...
Red8 {[%clk 0:01:46.6]} 24. Bc1 {[%clk 0:01:52.7]} 24... d3 {[%clk 0:01:33.1]}
25. Bxh6 {[%clk 0:01:40.8]} 25... dxc2 {[%clk 0:01:32.4]} 26. Rxd8+ {[%clk
0:01:41.7]} 26... Rxd8 {[%clk 0:01:31.5]} 27. Bxc2 {[%clk 0:01:42.6]} 27... Ne6
{[%clk 0:01:31.2]} 28. Ne3 {[%clk 0:01:33.6]} 28... Nd4 {[%clk 0:01:28.8]} 29.
Nd5 {[%clk 0:01:32.1]} 29... Nxd5 {[%clk 0:01:28.2]} 30. exd5 {[%clk 0:01:33]}
30... f5 {[%clk 0:01:26.8]} 31. b4 {[%clk 0:01:04.8]} 31... Qd6 {[%clk 0:01:19]}
32. a3 {[%clk 0:00:55.4]} 32... a5 {[%clk 0:01:18.7]} 33. bxa5 {[%clk
0:00:39.3]} 33... bxa5 {[%clk 0:01:18]} 34. Be3 {[%clk 0:00:25.4]} 34... Nxc2
{[%clk 0:01:08.9]} 35. Qxc2 {[%clk 0:00:26.3]} 35... f4 {[%clk 0:01:09.8]} 36.
Ne4 {[%clk 0:00:26.4]} 36... Qxa3 {[%clk 0:01:08.3]} 37. Bc5 {[%clk 0:00:24]}
37... Qa1+ {[%clk 0:01:07.8]} 38. Kf2 {[%clk 0:00:24.2]} 38... Ba6 {[%clk
0:01:07.5]} 39. Nf6+ {[%clk 0:00:11.8]} 39... Kf7 {[%clk 0:01:07]} 40. Ng4
{[%clk 0:00:12.7]} 40... Rxd5 {[%clk 0:01:06.6]} 41. Bb6 {[%clk 0:00:05.3]}
41... h5 {[%clk 0:00:44.5]} 42. Qe4 {[%clk 0:00:03.6]} 42... Qb2+ {[%clk
0:00:42.1]} 0-1

[Event "*** Titled Tuesday Blitz"]
[Site "Chess.com"]
[Date "2020.05.05"]
[Round "1"]
[White "KingChess345"]
[Black "TheCavemanChesss"]
[Result "1-0"]
[WhiteElo "2168"]
[BlackElo "2507"]
[TimeControl "180+1"]
[EndTime "10:07:11 PDT"]
[Termination "KingChess345 won by resignation"]

1. d4 {[%clk 0:03:00.8]} 1... Nf6 {[%clk 0:02:59.3]} 2. Nf3 {[%clk 0:03:01.3]}
2... g6 {[%clk 0:02:59.1]} 3. g3 {[%clk 0:03:01.8]} 3... Bg7 {[%clk 0:02:59.6]}
4. Bg2 {[%clk 0:03:01.9]} 4... O-O {[%clk 0:03:00.5]} 5. O-O {[%clk 0:03:02.1]}
5... d6 {[%clk 0:03:01.1]} 6. c4 {[%clk 0:03:02.2]} 6... Nbd7 {[%clk 0:03:01.4]}
7. Nc3 {[%clk 0:03:03.1]} 7... e5 {[%clk 0:03:01.4]} 8. b3 {[%clk 0:03:03.2]}
8... Re8 {[%clk 0:02:59.4]} 9. e4 {[%clk 0:03:01.8]} 9... c6 {[%clk 0:02:53]}
10. Bb2 {[%clk 0:03:00.8]} 10... exd4 {[%clk 0:02:51.3]} 11. Nxd4 {[%clk
0:02:59.8]} 11... Nc5 {[%clk 0:02:51.9]} 12. Qc2 {[%clk 0:02:59.1]} 12... a5
{[%clk 0:02:45.8]} 13. Rad1 {[%clk 0:02:58]} 13... Qe7 {[%clk 0:02:33.3]} 14.
Rfe1 {[%clk 0:02:55.2]} 14... h5 {[%clk 0:02:24.8]} 15. h3 {[%clk 0:02:51.8]}
15... Be6 {[%clk 0:02:03.9]} 16. Kh2 {[%clk 0:02:50.5]} 16... Rad8 {[%clk
0:02:01.1]} 17. f4 {[%clk 0:02:50.2]} 17... h4 {[%clk 0:01:42.9]} 18. g4 {[%clk
0:02:42.8]} 18... Bxg4 {[%clk 0:01:36.7]} 19. hxg4 {[%clk 0:02:43.7]} 19...
Nxg4+ {[%clk 0:01:37.3]} 20. Kh1 {[%clk 0:02:32]} 20... h3 {[%clk 0:01:32.6]}
21. Bxh3 {[%clk 0:02:29.7]} 21... Qh4 {[%clk 0:01:32.5]} 22. Kg2 {[%clk
0:02:11.9]} 22... Bxd4 {[%clk 0:01:18.6]} 23. Rxd4 {[%clk 0:02:07.4]} 23... Ne6
{[%clk 0:01:15.6]} 24. Qd2 {[%clk 0:00:38.4]} 24... Nxd4 {[%clk 0:00:50.8]} 25.
Qxd4 {[%clk 0:00:39.3]} 25... Qxe1 {[%clk 0:00:49.4]} 26. Bxg4 {[%clk
0:00:39.7]} 26... c5 {[%clk 0:00:28.6]} 27. Qd3 {[%clk 0:00:39.9]} 27... d5
{[%clk 0:00:18.7]} 28. Nxd5 {[%clk 0:00:37.1]} 28... Kf8 {[%clk 0:00:11.9]} 29.
Bf6 {[%clk 0:00:28.7]} 29... Rd6 {[%clk 0:00:08.6]} 30. e5 {[%clk 0:00:25.9]}
30... Rxf6 {[%clk 0:00:04.3]} 31. Nxf6 {[%clk 0:00:23.8]} 31... Ra8 {[%clk
0:00:04.9]} 32. Qh3 {[%clk 0:00:18.3]} 32... Ke7 {[%clk 0:00:04.8]} 33. Qh4
{[%clk 0:00:17.3]} 33... Qd2+ {[%clk 0:00:05.1]} 34. Qf2 {[%clk 0:00:17.1]}
34... Qxf2+ {[%clk 0:00:05.3]} 35. Kxf2 {[%clk 0:00:18]} 35... Rd8 {[%clk
0:00:05.7]} 36. Nd5+ {[%clk 0:00:17.1]} 36... Ke8 {[%clk 0:00:06.1]} 37. Ke3
{[%clk 0:00:16.9]} 37... Ra8 {[%clk 0:00:03.5]} 38. Nc7+ {[%clk 0:00:15.9]} 1-0

[Event "*** Titled Tuesday Blitz"]
[Site "Chess.com"]
[Date "2020.05.05"]
[Round "1"]
[White "gahryman"]
[Black "Ceejay271"]
[Result "0-1"]
[WhiteElo "2645"]
[BlackElo "2357"]
[TimeControl "180+1"]
[EndTime "10:07:12 PDT"]
[Termination "Ceejay271 won by resignation"]

1. e4 {[%clk 0:02:57.6]} 1... c5 {[%clk 0:02:59.6]} 2. Nf3 {[%clk 0:02:56.5]}
2... Nc6 {[%clk 0:02:59.6]} 3. d4 {[%clk 0:02:54.4]} 3... cxd4 {[%clk
0:03:00.5]} 4. Nxd4 {[%clk 0:02:55.2]} 4... g6 {[%clk 0:03:00.9]} 5. Nc3 {[%clk
0:02:53.3]} 5... Bg7 {[%clk 0:02:59.1]} 6. Be3 {[%clk 0:02:53.5]} 6... Nf6
{[%clk 0:02:54.2]} 7. Bc4 {[%clk 0:02:52.1]} 7... O-O {[%clk 0:02:53.4]} 8. Bb3
{[%clk 0:02:49.6]} 8... Re8 {[%clk 0:02:51.9]} 9. f3 {[%clk 0:02:43.7]} 9... e6
{[%clk 0:02:48.1]} 10. Nxc6 {[%clk 0:02:41.2]} 10... dxc6 {[%clk 0:02:39.7]} 11.
Qxd8 {[%clk 0:02:38.5]} 11... Rxd8 {[%clk 0:02:39.2]} 12. a4 {[%clk 0:02:37.4]}
12... a5 {[%clk 0:02:31.3]} 13. Ke2 {[%clk 0:02:32.6]} 13... Bd7 {[%clk
0:02:23.4]} 14. Rhd1 {[%clk 0:02:29.4]} 14... Be8 {[%clk 0:02:13.8]} 15. Rxd8
{[%clk 0:01:37.1]} 15... Rxd8 {[%clk 0:02:13]} 16. Bb6 {[%clk 0:01:37.7]} 16...
Ra8 {[%clk 0:02:13]} 17. Rd1 {[%clk 0:01:37]} 17... Nd7 {[%clk 0:02:12.5]} 18.
Be3 {[%clk 0:01:35.7]} 18... b6 {[%clk 0:02:08.5]} 19. Rd6 {[%clk 0:01:17.5]}
19... Rc8 {[%clk 0:02:05]} 20. Bc4 {[%clk 0:01:16.9]} 20... Bf8 {[%clk
0:02:03.6]} 21. Rd1 {[%clk 0:01:06.6]} 21... Bc5 {[%clk 0:02:02.8]} 22. Bxc5
{[%clk 0:01:00.1]} 22... Nxc5 {[%clk 0:02:02]} 23. e5 {[%clk 0:01:00.5]} 23...
Kf8 {[%clk 0:01:57.4]} 24. Ke3 {[%clk 0:01:00]} 24... Ke7 {[%clk 0:01:56.9]} 25.
b3 {[%clk 0:00:58]} 25... Rd8 {[%clk 0:01:53.3]} 26. Rxd8 {[%clk 0:00:56.6]}
26... Kxd8 {[%clk 0:01:54.2]} 27. h4 {[%clk 0:00:57.3]} 27... h6 {[%clk
0:01:52.2]} 28. f4 {[%clk 0:00:54.5]} 28... Ke7 {[%clk 0:01:51.2]} 29. g4 {[%clk
0:00:53]} 29... Bd7 {[%clk 0:01:49.9]} 30. g5 {[%clk 0:00:51.6]} 30... hxg5
{[%clk 0:01:48.5]} 31. fxg5 {[%clk 0:00:52.5]} 31... Bc8 {[%clk 0:01:47]} 32.
Be2 {[%clk 0:00:48.6]} 32... Ba6 {[%clk 0:01:43]} 33. Bf3 {[%clk 0:00:48]} 33...
Bb7 {[%clk 0:01:30]} 34. Ne4 {[%clk 0:00:47.8]} 34... Nxe4 {[%clk 0:01:26.6]}
35. Bxe4 {[%clk 0:00:48.7]} 35... Kd7 {[%clk 0:01:26.1]} 36. Kf4 {[%clk
0:00:47.6]} 36... Ba6 {[%clk 0:01:24.4]} 37. c4 {[%clk 0:00:46]} 37... c5 {[%clk
0:01:20.9]} 38. Kg4 {[%clk 0:00:44]} 38... Ke7 {[%clk 0:01:17.5]} 39. h5 {[%clk
0:00:44]} 39... gxh5+ {[%clk 0:01:17.4]} 40. Kxh5 {[%clk 0:00:44.9]} 40... Kf8
{[%clk 0:01:14.3]} 41. Kh6 {[%clk 0:00:44.7]} 41... Bc8 {[%clk 0:01:13.3]} 42.
Bc6 {[%clk 0:00:43.7]} 42... Ba6 {[%clk 0:01:12]} 43. Bd7 {[%clk 0:00:43.1]}
43... Bb7 {[%clk 0:01:11.4]} 44. g6 {[%clk 0:00:38.1]} 44... fxg6 {[%clk
0:01:07.4]} 45. Bxe6 {[%clk 0:00:38.2]} 45... Be4 {[%clk 0:01:07.8]} 46. Bd5
{[%clk 0:00:31.5]} 46... Bc2 {[%clk 0:01:07.2]} 47. Kg5 {[%clk 0:00:29.9]} 47...
Ke7 {[%clk 0:01:03.8]} 48. Bc6 {[%clk 0:00:12]} 48... Bxb3 {[%clk 0:01:02.1]}
49. Bb5 {[%clk 0:00:12.3]} 49... Bc2 {[%clk 0:01:01.8]} 50. Kf4 {[%clk
0:00:11.8]} 50... Ke6 {[%clk 0:01:00]} 51. Ba6 {[%clk 0:00:11.8]} 51... g5+
{[%clk 0:00:59.5]} 52. Kxg5 {[%clk 0:00:11.9]} 52... Kxe5 {[%clk 0:01:00.2]} 53.
Bb5 {[%clk 0:00:10.8]} 53... Kd4 {[%clk 0:01:00.3]} 54. Kf6 {[%clk 0:00:10.3]}
54... Bd3 {[%clk 0:01:00.6]} 55. Ke6 {[%clk 0:00:10.1]} 55... Bxc4+ {[%clk
0:01:01.2]} 0-1

[Event "*** Titled Tuesday Blitz"]
[Site "Chess.com"]
[Date "2020.05.05"]
[Round "1"]
[White "Gurvich_Vitaly"]
[Black "Wolverine_master"]
[Result "1-0"]
[WhiteElo "2560"]
[BlackElo "2214"]
[TimeControl "180+1"]
[EndTime "10:07:13 PDT"]
[Termination "Gurvich_Vitaly won on time"]

1. e4 {[%clk 0:03:00.5]} 1... c5 {[%clk 0:02:59.6]} 2. Nf3 {[%clk 0:03:00.4]}
2... g6 {[%clk 0:03:00.1]} 3. d4 {[%clk 0:02:56]} 3... cxd4 {[%clk 0:03:01]} 4.
Nxd4 {[%clk 0:02:56.9]} 4... Bg7 {[%clk 0:03:01.3]} 5. c4 {[%clk 0:02:56.8]}
5... Nc6 {[%clk 0:03:01.6]} 6. Be3 {[%clk 0:02:56.5]} 6... Nf6 {[%clk
0:03:00.2]} 7. Nc3 {[%clk 0:02:56.3]} 7... d6 {[%clk 0:02:59.6]} 8. Be2 {[%clk
0:02:56.1]} 8... O-O {[%clk 0:02:59.6]} 9. O-O {[%clk 0:02:55.7]} 9... Bd7
{[%clk 0:03:00]} 10. Qd2 {[%clk 0:02:54.8]} 10... Nxd4 {[%clk 0:02:59.7]} 11.
Bxd4 {[%clk 0:02:55.7]} 11... Bc6 {[%clk 0:03:00.1]} 12. f3 {[%clk 0:02:56.2]}
12... a5 {[%clk 0:02:59.5]} 13. Rfd1 {[%clk 0:02:55.4]} 13... Re8 {[%clk
0:02:58.3]} 14. Rac1 {[%clk 0:02:55.2]} 14... a4 {[%clk 0:02:58.4]} 15. Nd5
{[%clk 0:02:53.3]} 15... Nd7 {[%clk 0:02:31.1]} 16. Bf2 {[%clk 0:02:46.4]} 16...
Qa5 {[%clk 0:02:23.5]} 17. Qc2 {[%clk 0:02:34.6]} 17... Nc5 {[%clk 0:02:17.8]}
18. Bf1 {[%clk 0:02:12.6]} 18... e5 {[%clk 0:01:37]} 19. Nc3 {[%clk 0:01:49.9]}
19... Red8 {[%clk 0:01:33.4]} 20. Nb5 {[%clk 0:00:54.4]} 20... Bxb5 {[%clk
0:01:13.5]} 21. cxb5 {[%clk 0:00:55.3]} 21... Rac8 {[%clk 0:00:44.2]} 22. g3
{[%clk 0:00:48]} 22... Qa8 {[%clk 0:00:33.3]} 23. Qd2 {[%clk 0:00:44.6]} 23...
b6 {[%clk 0:00:23.1]} 24. Bc4 {[%clk 0:00:43]} 24... Rc7 {[%clk 0:00:17.7]} 25.
Bd5 {[%clk 0:00:41.8]} 25... Qa5 {[%clk 0:00:17.2]} 26. Bc6 {[%clk 0:00:41.7]}
26... Qxd2 {[%clk 0:00:13.6]} 27. Rxd2 {[%clk 0:00:42.6]} 27... Ne6 {[%clk
0:00:10.7]} 28. Rc4 {[%clk 0:00:38.1]} 28... Nc5 {[%clk 0:00:09.8]} 29. Bxc5
{[%clk 0:00:35.5]} 29... bxc5 {[%clk 0:00:09.8]} 30. Rxa4 {[%clk 0:00:35.6]}
30... Rb8 {[%clk 0:00:10.1]} 31. Rxd6 {[%clk 0:00:32.3]} 31... Bf8 {[%clk
0:00:09.5]} 32. Rd1 {[%clk 0:00:30.1]} 32... f5 {[%clk 0:00:09.6]} 33. Rc4
{[%clk 0:00:26]} 33... fxe4 {[%clk 0:00:08.6]} 34. Rxe4 {[%clk 0:00:26.9]} 34...
Ra7 {[%clk 0:00:08.5]} 35. a4 {[%clk 0:00:26.7]} 35... Re7 {[%clk 0:00:07.4]}
36. a5 {[%clk 0:00:26.5]} 36... Kf7 {[%clk 0:00:05.9]} 37. a6 {[%clk 0:00:26.5]}
37... Kf6 {[%clk 0:00:04.5]} 38. Ra4 {[%clk 0:00:25]} 38... Ra7 {[%clk
0:00:02.1]} 39. Rd7 {[%clk 0:00:24.8]} 1-0